[Event "*** SCC Grand Prix: Titled Tuesday Blitz"]
[Site "Chess.com"]
[Date "2020.07.21"]
[Round "5"]
[White "Rish_97"]
[Black "GGfrances"]
[Result "0-1"]
[WhiteElo "2695"]
[BlackElo "2488"]
[TimeControl "180+1"]
[EndTime "10:55:31 PDT"]
[Termination "GGfrances won by resignation"]

1. d4 {[%clk 0:03:00.1]} 1... Nf6 {[%clk 0:02:56.2]} 2. c4 {[%clk 0:02:58.1]}
2... g6 {[%clk 0:02:39.5]} 3. g3 {[%clk 0:02:51.5]} 3... Bg7 {[%clk 0:02:37.7]}
4. Bg2 {[%clk 0:02:52.4]} 4... d6 {[%clk 0:02:33.2]} 5. Nc3 {[%clk 0:02:51.1]}
5... O-O {[%clk 0:02:33.3]} 6. Nf3 {[%clk 0:02:50.7]} 6... c6 {[%clk 0:02:28.6]}
7. O-O {[%clk 0:02:50.1]} 7... Qa5 {[%clk 0:02:27.6]} 8. e4 {[%clk 0:02:47.4]}
8... Qh5 {[%clk 0:02:25.8]} 9. Ng5 {[%clk 0:02:45.2]} 9... Qxd1 {[%clk
0:02:23.3]} 10. Rxd1 {[%clk 0:02:46.1]} 10... h6 {[%clk 0:02:20.3]} 11. Nh3
{[%clk 0:02:44.1]} 11... Nbd7 {[%clk 0:02:14]} 12. f3 {[%clk 0:02:44.1]} 12...
c5 {[%clk 0:02:09.2]} 13. Be3 {[%clk 0:02:38.8]} 13... cxd4 {[%clk 0:02:03.7]}
14. Bxd4 {[%clk 0:02:38]} 14... Ne5 {[%clk 0:02:00.2]} 15. Nf4 {[%clk
0:01:56.3]} 15... Nxc4 {[%clk 0:01:56.9]} 16. Nfd5 {[%clk 0:01:55.5]} 16... Nxb2
{[%clk 0:01:50.7]} 17. Nxe7+ {[%clk 0:01:46.9]} 17... Kh7 {[%clk 0:01:50.8]} 18.
Rdb1 {[%clk 0:01:41.5]} 18... Nc4 {[%clk 0:01:46.8]} 19. Nxc8 {[%clk 0:01:37.4]}
19... Raxc8 {[%clk 0:01:42.9]} 20. Rxb7 {[%clk 0:01:37.8]} 20... Na5 {[%clk
0:01:39]} 21. Rb5 {[%clk 0:01:03.3]} 21... Rc4 {[%clk 0:01:32.8]} 22. Ne2 {[%clk
0:00:38.9]} 22... Nc6 {[%clk 0:01:26.9]} 23. Bb2 {[%clk 0:00:28.4]} 23... a6
{[%clk 0:01:17.2]} 24. Rb3 {[%clk 0:00:26.8]} 24... Na5 {[%clk 0:01:14.9]} 25.
Rc3 {[%clk 0:00:22.4]} 25... Rb8 {[%clk 0:01:08.8]} 26. Rxc4 {[%clk 0:00:17.8]}
26... Nxc4 {[%clk 0:01:09.7]} 27. Bd4 {[%clk 0:00:16]} 27... Ne5 {[%clk
0:01:02.6]} 28. Rd1 {[%clk 0:00:14.1]} 28... Nfd7 {[%clk 0:00:56.9]} 29. f4
{[%clk 0:00:13.5]} 29... Nc4 {[%clk 0:00:55.1]} 30. Bxg7 {[%clk 0:00:13.4]}
30... Kxg7 {[%clk 0:00:52.9]} 31. Rc1 {[%clk 0:00:09.1]} 31... Rb4 {[%clk
0:00:50.5]} 32. Nc3 {[%clk 0:00:08.5]} 32... Ne3 {[%clk 0:00:48.1]} 33. Bh3
{[%clk 0:00:06.8]} 33... Nc5 {[%clk 0:00:45.4]} 34. Kf2 {[%clk 0:00:07.1]} 34...
Nd3+ {[%clk 0:00:43]} 35. Kxe3 {[%clk 0:00:07]} 35... Nxc1 {[%clk 0:00:43.9]}
36. Nd5 {[%clk 0:00:06.8]} 36... Rb2 {[%clk 0:00:42.3]} 37. a4 {[%clk
0:00:06.6]} 37... Rxh2 {[%clk 0:00:41.9]} 38. Bc8 {[%clk 0:00:07.5]} 38... Ra2
{[%clk 0:00:41]} 39. Nb6 {[%clk 0:00:05.6]} 39... a5 {[%clk 0:00:41.2]} 40. Bd7
{[%clk 0:00:04.7]} 40... Ra3+ {[%clk 0:00:41.3]} 41. Kd4 {[%clk 0:00:04.4]}
41... Nb3+ {[%clk 0:00:41.4]} 42. Kc3 {[%clk 0:00:04.7]} 42... Nc5+ {[%clk
0:00:41.7]} 43. Kb2 {[%clk 0:00:05.1]} 43... Rxg3 {[%clk 0:00:42.3]} 44. Bb5
{[%clk 0:00:04.4]} 44... Nxe4 {[%clk 0:00:42.3]} 45. Nc4 {[%clk 0:00:04]} 45...
Nc5 {[%clk 0:00:42.5]} 46. Nxa5 {[%clk 0:00:04.2]} 46... Rf3 {[%clk 0:00:42.5]}
47. Nc4 {[%clk 0:00:02.8]} 47... Rxf4 {[%clk 0:00:42.7]} 48. Nxd6 {[%clk
0:00:03]} 48... Nxa4+ {[%clk 0:00:43]} 0-1

[Event "*** SCC Grand Prix: Titled Tuesday Blitz"]
[Site "Chess.com"]
[Date "2020.07.21"]
[Round "5"]
[White "GregShahade"]
[Black "pooh2012"]
[Result "1-0"]
[WhiteElo "2708"]
[BlackElo "2431"]
[TimeControl "180+1"]
[EndTime "10:55:31 PDT"]
[Termination "GregShahade won by resignation"]

1. e4 {[%clk 0:03:00.9]} 1... c6 {[%clk 0:02:57]} 2. Nc3 {[%clk 0:03:00.3]} 2...
d5 {[%clk 0:02:56.5]} 3. Nf3 {[%clk 0:03:00.8]} 3... Bg4 {[%clk 0:02:55.9]} 4.
h3 {[%clk 0:03:00.8]} 4... Bxf3 {[%clk 0:02:56]} 5. Qxf3 {[%clk 0:03:01.7]} 5...
e6 {[%clk 0:02:56.2]} 6. Be2 {[%clk 0:03:02]} 6... Nf6 {[%clk 0:02:52.4]} 7. O-O
{[%clk 0:03:01.7]} 7... Nbd7 {[%clk 0:02:50.3]} 8. d4 {[%clk 0:03:00.2]} 8...
dxe4 {[%clk 0:02:48.2]} 9. Nxe4 {[%clk 0:03:01.1]} 9... Nxe4 {[%clk 0:02:48.3]}
10. Qxe4 {[%clk 0:03:02]} 10... Nf6 {[%clk 0:02:48.6]} 11. Qd3 {[%clk
0:03:01.7]} 11... Bd6 {[%clk 0:02:45]} 12. c3 {[%clk 0:02:53.4]} 12... O-O
{[%clk 0:02:43.6]} 13. Re1 {[%clk 0:02:52.6]} 13... c5 {[%clk 0:02:34.7]} 14.
Be3 {[%clk 0:02:50.4]} 14... Qc7 {[%clk 0:02:12.3]} 15. dxc5 {[%clk 0:02:40.8]}
15... Bxc5 {[%clk 0:02:11]} 16. Qc4 {[%clk 0:02:37.8]} 16... Rac8 {[%clk
0:02:00.7]} 17. Bxc5 {[%clk 0:02:30.4]} 17... Qxc5 {[%clk 0:01:59.2]} 18. Qxc5
{[%clk 0:02:30.6]} 18... Rxc5 {[%clk 0:01:59.4]} 19. Rad1 {[%clk 0:02:27.3]}
19... Rfc8 {[%clk 0:01:38.6]} 20. Bf3 {[%clk 0:02:22.3]} 20... R5c7 {[%clk
0:01:17.9]} 21. Rd4 {[%clk 0:02:14.6]} 21... Kf8 {[%clk 0:01:17.3]} 22. Kf1
{[%clk 0:02:11.5]} 22... Ke7 {[%clk 0:01:17]} 23. Red1 {[%clk 0:02:08.2]} 23...
b6 {[%clk 0:01:14.3]} 24. a4 {[%clk 0:02:04.8]} 24... Rd7 {[%clk 0:01:12.1]} 25.
Ke2 {[%clk 0:01:39.2]} 25... Rxd4 {[%clk 0:00:37.4]} 26. Rxd4 {[%clk 0:01:40.1]}
26... e5 {[%clk 0:00:37.6]} 27. Rb4 {[%clk 0:01:20.6]} 27... Rc5 {[%clk
0:00:35]} 28. Kd2 {[%clk 0:01:17.9]} 28... Nd5 {[%clk 0:00:25.8]} 29. Rh4 {[%clk
0:01:03.8]} 29... Nf6 {[%clk 0:00:20.4]} 30. b4 {[%clk 0:01:00.2]} 30... Rc7
{[%clk 0:00:20.1]} 31. b5 {[%clk 0:00:23.2]} 31... h5 {[%clk 0:00:17]} 32. a5
{[%clk 0:00:18.1]} 32... g5 {[%clk 0:00:11.7]} 33. Ra4 {[%clk 0:00:17.5]} 33...
Rc5 {[%clk 0:00:12.1]} 34. axb6 {[%clk 0:00:17.3]} 34... axb6 {[%clk 0:00:13]}
35. Bc6 {[%clk 0:00:16.2]} 35... g4 {[%clk 0:00:07]} 36. hxg4 {[%clk 0:00:14.9]}
36... Nxg4 {[%clk 0:00:07.8]} 37. f3 {[%clk 0:00:13.5]} 37... Nf6 {[%clk
0:00:06.6]} 38. Ra7+ {[%clk 0:00:13.4]} 38... Ke6 {[%clk 0:00:06.6]} 39. Rb7
{[%clk 0:00:13.8]} 39... Kf5 {[%clk 0:00:04.8]} 40. Rxb6 {[%clk 0:00:13.2]}
40... Kf4 {[%clk 0:00:04.7]} 41. Rb7 {[%clk 0:00:13]} 41... Kg3 {[%clk
0:00:03.1]} 42. Rxf7 {[%clk 0:00:12.8]} 42... Ng8 {[%clk 0:00:02.9]} 43. Rg7+
{[%clk 0:00:13.1]} 1-0

[Event "*** SCC Grand Prix: Titled Tuesday Blitz"]
[Site "Chess.com"]
[Date "2020.07.21"]
[Round "5"]
[White "MNyuyu"]
[Black "krzyzan94"]
[Result "0-1"]
[WhiteElo "2420"]
[BlackElo "2643"]
[TimeControl "180+1"]
[EndTime "10:55:32 PDT"]
[Termination "krzyzan94 won by checkmate"]

1. d4 {[%clk 0:03:00.9]} 1... Nf6 {[%clk 0:02:59.6]} 2. Nf3 {[%clk 0:03:01]}
2... g6 {[%clk 0:02:59.1]} 3. Bf4 {[%clk 0:03:01]} 3... Bg7 {[%clk 0:02:58.9]}
4. e3 {[%clk 0:03:01.5]} 4... O-O {[%clk 0:02:58.6]} 5. Be2 {[%clk 0:03:01.8]}
5... d6 {[%clk 0:02:58.4]} 6. h3 {[%clk 0:03:01.8]} 6... Nbd7 {[%clk 0:02:58.5]}
7. Nbd2 {[%clk 0:03:01.5]} 7... Qe8 {[%clk 0:02:56]} 8. c3 {[%clk 0:03:00.9]}
8... e5 {[%clk 0:02:55.9]} 9. dxe5 {[%clk 0:03:01.1]} 9... dxe5 {[%clk
0:02:56.1]} 10. Bh2 {[%clk 0:03:01.4]} 10... Qe7 {[%clk 0:02:52.9]} 11. O-O
{[%clk 0:02:59.5]} 11... Rd8 {[%clk 0:02:36.8]} 12. Qc2 {[%clk 0:02:58.7]} 12...
c6 {[%clk 0:02:22.1]} 13. Nc4 {[%clk 0:02:53.9]} 13... Ne8 {[%clk 0:02:21.6]}
14. Rad1 {[%clk 0:02:50.1]} 14... f6 {[%clk 0:02:14.9]} 15. e4 {[%clk
0:02:42.3]} 15... Nc5 {[%clk 0:02:10.7]} 16. Rxd8 {[%clk 0:02:39.8]} 16... Qxd8
{[%clk 0:02:10.4]} 17. Rd1 {[%clk 0:02:38.9]} 17... Qe7 {[%clk 0:02:10.6]} 18.
b4 {[%clk 0:02:29.7]} 18... Ne6 {[%clk 0:02:09]} 19. a4 {[%clk 0:02:08.5]} 19...
b6 {[%clk 0:02:02.5]} 20. a5 {[%clk 0:02:06.8]} 20... b5 {[%clk 0:01:58.1]} 21.
Ne3 {[%clk 0:02:03.1]} 21... Nd6 {[%clk 0:01:34.6]} 22. Qb3 {[%clk 0:01:41.8]}
22... Nxe4 {[%clk 0:01:19.9]} 23. c4 {[%clk 0:01:41.1]} 23... Nd6 {[%clk
0:01:01.4]} 24. cxb5 {[%clk 0:01:39.1]} 24... Nxb5 {[%clk 0:00:56.6]} 25. Bxb5
{[%clk 0:01:37]} 25... cxb5 {[%clk 0:00:57.5]} 26. Nd5 {[%clk 0:01:21.6]} 26...
Qf7 {[%clk 0:00:57.2]} 27. Nc3 {[%clk 0:01:09.2]} 27... a6 {[%clk 0:00:32]} 28.
Rd8+ {[%clk 0:00:56.3]} 28... Nxd8 {[%clk 0:00:30.6]} 29. Qc2 {[%clk 0:00:55.4]}
29... Bb7 {[%clk 0:00:29.6]} 30. Bg3 {[%clk 0:00:54.6]} 30... Ne6 {[%clk
0:00:29.2]} 31. Ne4 {[%clk 0:00:53]} 31... Rc8 {[%clk 0:00:26.4]} 32. Qe2 {[%clk
0:00:52.3]} 32... Bxe4 {[%clk 0:00:25.9]} 33. Qxe4 {[%clk 0:00:51.6]} 33... Qd7
{[%clk 0:00:25.7]} 34. h4 {[%clk 0:00:50.4]} 34... Nd4 {[%clk 0:00:23.3]} 35.
Nxd4 {[%clk 0:00:45.3]} 35... exd4 {[%clk 0:00:23.8]} 36. h5 {[%clk 0:00:43.2]}
36... d3 {[%clk 0:00:20.5]} 37. hxg6 {[%clk 0:00:41.5]} 37... d2 {[%clk
0:00:20.6]} 38. gxh7+ {[%clk 0:00:40.5]} 38... Kh8 {[%clk 0:00:21]} 39. Qg6
{[%clk 0:00:39.8]} 39... d1=Q+ {[%clk 0:00:21.1]} 40. Kh2 {[%clk 0:00:39.9]}
40... Rc1 {[%clk 0:00:18.4]} 41. Bf4 {[%clk 0:00:36.2]} 41... Qg1+ {[%clk
0:00:14.7]} 42. Kg3 {[%clk 0:00:35.4]} 42... Rc3+ {[%clk 0:00:14.7]} 43. f3
{[%clk 0:00:20.5]} 43... Qe1+ {[%clk 0:00:13.2]} 44. Kh2 {[%clk 0:00:19.8]}
44... Qh4+ {[%clk 0:00:13]} 45. Kg1 {[%clk 0:00:19.4]} 45... Qd1# {[%clk
0:00:12.7]} 0-1

[Event "*** SCC Grand Prix: Titled Tuesday Blitz"]
[Site "Chess.com"]
[Date "2020.07.21"]
[Round "5"]
[White "tan275"]
[Black "ThePatrick27"]
[Result "1-0"]
[WhiteElo "2255"]
[BlackElo "2497"]
[TimeControl "180+1"]
[EndTime "10:55:33 PDT"]
[Termination "tan275 won by checkmate"]

1. d4 {[%clk 0:03:00.9]} 1... Nf6 {[%clk 0:02:59.4]} 2. c4 {[%clk 0:03:00.7]}
2... g6 {[%clk 0:02:59.9]} 3. g3 {[%clk 0:02:59]} 3... Bg7 {[%clk 0:02:59.9]} 4.
Bg2 {[%clk 0:02:58.6]} 4... O-O {[%clk 0:03:00.5]} 5. Nf3 {[%clk 0:02:58.5]}
5... d6 {[%clk 0:03:00.3]} 6. Nc3 {[%clk 0:02:58]} 6... Nc6 {[%clk 0:02:59.4]}
7. O-O {[%clk 0:02:57.6]} 7... e5 {[%clk 0:02:59.6]} 8. d5 {[%clk 0:02:56.3]}
8... Ne7 {[%clk 0:02:58.4]} 9. e4 {[%clk 0:02:47.8]} 9... Nd7 {[%clk 0:02:50.2]}
10. Ne1 {[%clk 0:02:46.1]} 10... a5 {[%clk 0:02:45.2]} 11. Nd3 {[%clk
0:02:44.7]} 11... f5 {[%clk 0:02:38.6]} 12. f4 {[%clk 0:02:39.3]} 12... c6
{[%clk 0:02:25.1]} 13. fxe5 {[%clk 0:02:29.6]} 13... Nxe5 {[%clk 0:02:24.5]} 14.
Nxe5 {[%clk 0:02:27.4]} 14... Bxe5 {[%clk 0:02:23.9]} 15. Bh6 {[%clk 0:02:14.8]}
15... Re8 {[%clk 0:02:10]} 16. Kh1 {[%clk 0:02:10]} 16... Qb6 {[%clk 0:01:36.3]}
17. Qd2 {[%clk 0:01:55.3]} 17... cxd5 {[%clk 0:01:31.6]} 18. cxd5 {[%clk
0:01:38.9]} 18... Bd7 {[%clk 0:01:25.7]} 19. Rae1 {[%clk 0:01:36.5]} 19... Qd4
{[%clk 0:01:18.9]} 20. Qg5 {[%clk 0:01:26.6]} 20... Bf6 {[%clk 0:01:09.3]} 21.
Qf4 {[%clk 0:01:19.9]} 21... Be5 {[%clk 0:00:51]} 22. Qg5 {[%clk 0:01:18.7]}
22... Bg7 {[%clk 0:00:47.6]} 23. Bxg7 {[%clk 0:01:10.9]} 23... Qxg7 {[%clk
0:00:47.2]} 24. exf5 {[%clk 0:00:56.4]} 24... gxf5 {[%clk 0:00:48.1]} 25. Qf4
{[%clk 0:00:38.1]} 25... Ra6 {[%clk 0:00:43.1]} 26. Ne2 {[%clk 0:00:30.2]} 26...
Rf8 {[%clk 0:00:40.3]} 27. Nd4 {[%clk 0:00:27.2]} 27... Ng6 {[%clk 0:00:40.5]}
28. Qd2 {[%clk 0:00:26]} 28... Ne5 {[%clk 0:00:34.6]} 29. Ne6 {[%clk 0:00:25.1]}
29... Bxe6 {[%clk 0:00:33.7]} 30. dxe6 {[%clk 0:00:26]} 30... Qe7 {[%clk
0:00:34]} 31. Bd5 {[%clk 0:00:22.9]} 31... Kh8 {[%clk 0:00:29.3]} 32. Qg2 {[%clk
0:00:19.6]} 32... Rb6 {[%clk 0:00:28.3]} 33. b3 {[%clk 0:00:19.5]} 33... Rb4
{[%clk 0:00:23.4]} 34. Rf4 {[%clk 0:00:17.3]} 34... Rxf4 {[%clk 0:00:22.4]} 35.
gxf4 {[%clk 0:00:16.8]} 35... Ng6 {[%clk 0:00:23.1]} 36. Qg5 {[%clk 0:00:14]}
36... Qxg5 {[%clk 0:00:20.6]} 37. fxg5 {[%clk 0:00:14.9]} 37... b6 {[%clk
0:00:20.6]} 38. e7 {[%clk 0:00:12.7]} 38... Re8 {[%clk 0:00:19.8]} 39. Rc1
{[%clk 0:00:10.5]} 39... Rxe7 {[%clk 0:00:19.8]} 40. Rc8+ {[%clk 0:00:10.6]}
40... Kg7 {[%clk 0:00:14.1]} 41. Rg8# {[%clk 0:00:10.1]} 1-0

[Event "*** SCC Grand Prix: Titled Tuesday Blitz"]
[Site "Chess.com"]
[Date "2020.07.21"]
[Round "5"]
[White "tsvet2005"]
[Black "Agibileg"]
[Result "0-1"]
[WhiteElo "2568"]
[BlackElo "2420"]
[TimeControl "180+1"]
[EndTime "10:55:35 PDT"]
[Termination "Agibileg won on time"]

1. d4 {[%clk 0:03:00.9]} 1... Nf6 {[%clk 0:02:59.1]} 2. c4 {[%clk 0:03:01]} 2...
g6 {[%clk 0:02:59.1]} 3. Nc3 {[%clk 0:02:59]} 3... Bg7 {[%clk 0:02:59.8]} 4. e4
{[%clk 0:02:57.4]} 4... d6 {[%clk 0:03:00.3]} 5. Be2 {[%clk 0:02:56.8]} 5... O-O
{[%clk 0:03:00.6]} 6. Be3 {[%clk 0:02:57.1]} 6... e5 {[%clk 0:02:57.1]} 7. d5
{[%clk 0:02:57.3]} 7... a5 {[%clk 0:02:54.7]} 8. h4 {[%clk 0:02:57.6]} 8... h5
{[%clk 0:02:51]} 9. f3 {[%clk 0:02:53.9]} 9... c6 {[%clk 0:02:40.8]} 10. Nh3
{[%clk 0:02:48.6]} 10... b5 {[%clk 0:02:40]} 11. cxb5 {[%clk 0:02:37.9]} 11...
cxd5 {[%clk 0:02:37.9]} 12. Nxd5 {[%clk 0:02:34.8]} 12... Nbd7 {[%clk
0:02:27.2]} 13. Nf2 {[%clk 0:02:25.1]} 13... Bb7 {[%clk 0:02:22.5]} 14. Nc3
{[%clk 0:01:50.8]} 14... a4 {[%clk 0:02:20.3]} 15. O-O {[%clk 0:01:43.5]} 15...
Ne8 {[%clk 0:02:08.2]} 16. Qd2 {[%clk 0:01:16.3]} 16... Bf6 {[%clk 0:01:55.1]}
17. g3 {[%clk 0:01:10.4]} 17... Nb6 {[%clk 0:01:35]} 18. Rfd1 {[%clk 0:00:59.8]}
18... Rc8 {[%clk 0:01:30.6]} 19. Rac1 {[%clk 0:00:51.2]} 19... Be7 {[%clk
0:01:23.2]} 20. Kg2 {[%clk 0:00:31.6]} 20... Ng7 {[%clk 0:01:22.6]} 21. a3
{[%clk 0:00:17.3]} 21... f5 {[%clk 0:01:22.2]} 22. Bxb6 {[%clk 0:00:17.4]} 22...
Qxb6 {[%clk 0:01:22]} 23. Nd5 {[%clk 0:00:18]} 23... Bxd5 {[%clk 0:01:20.1]} 24.
Qxd5+ {[%clk 0:00:18.9]} 24... Kh7 {[%clk 0:01:20.7]} 25. Rc6 {[%clk 0:00:15.7]}
25... Qe3 {[%clk 0:01:18.1]} 26. Qd3 {[%clk 0:00:13.3]} 26... Qa7 {[%clk
0:01:14.4]} 27. Rdc1 {[%clk 0:00:13.2]} 27... Rxc6 {[%clk 0:01:13.8]} 28. bxc6
{[%clk 0:00:14.1]} 28... Ne6 {[%clk 0:01:12.7]} 29. exf5 {[%clk 0:00:10.6]}
29... Rxf5 {[%clk 0:01:09.5]} 30. Qd5 {[%clk 0:00:08.8]} 30... Nc7 {[%clk
0:01:05.9]} 31. Qd2 {[%clk 0:00:06.7]} 31... Ne6 {[%clk 0:01:03]} 32. Ne4 {[%clk
0:00:06.4]} 32... Qc7 {[%clk 0:00:54.7]} 33. Bd3 {[%clk 0:00:04.4]} 33... Nd4
{[%clk 0:00:48.9]} 34. Ng5+ {[%clk 0:00:03.4]} 34... Bxg5 {[%clk 0:00:48.9]} 35.
hxg5 {[%clk 0:00:04.3]} 35... Rxf3 {[%clk 0:00:49.1]} 36. Be4 {[%clk 0:00:04.1]}
36... Rf8 {[%clk 0:00:45.1]} 37. Qb4 {[%clk 0:00:01.8]} 37... Ne6 {[%clk
0:00:37.3]} 0-1

[Event "*** SCC Grand Prix: Titled Tuesday Blitz"]
[Site "Chess.com"]
[Date "2020.07.21"]
[Round "5"]
[White "MiroVlasenko"]
[Black "Chess_Boxer123"]
[Result "1-0"]
[WhiteElo "2733"]
[BlackElo "2570"]
[TimeControl "180+1"]
[EndTime "10:55:38 PDT"]
[Termination "MiroVlasenko won by resignation"]

1. d4 {[%clk 0:03:00.9]} 1... d5 {[%clk 0:02:59.5]} 2. Bf4 {[%clk 0:02:59.2]}
2... c5 {[%clk 0:02:58.6]} 3. e3 {[%clk 0:02:58.3]} 3... Nc6 {[%clk 0:02:58.6]}
4. Nc3 {[%clk 0:02:52.2]} 4... cxd4 {[%clk 0:02:57.7]} 5. exd4 {[%clk
0:02:51.9]} 5... a6 {[%clk 0:02:55.2]} 6. Nf3 {[%clk 0:02:51.7]} 6... Bg4 {[%clk
0:02:55.7]} 7. Be2 {[%clk 0:02:50.1]} 7... e6 {[%clk 0:02:55.7]} 8. O-O {[%clk
0:02:45.2]} 8... Bd6 {[%clk 0:02:53.7]} 9. Bxd6 {[%clk 0:02:41.1]} 9... Qxd6
{[%clk 0:02:54.6]} 10. Na4 {[%clk 0:02:41]} 10... b5 {[%clk 0:02:45.9]} 11. Nc5
{[%clk 0:02:35.6]} 11... Nge7 {[%clk 0:02:45.1]} 12. c3 {[%clk 0:02:27.1]} 12...
Bxf3 {[%clk 0:02:28.4]} 13. Bxf3 {[%clk 0:02:26.2]} 13... e5 {[%clk 0:02:28.9]}
14. a4 {[%clk 0:02:12.3]} 14... b4 {[%clk 0:02:27.4]} 15. Be2 {[%clk 0:02:00]}
15... a5 {[%clk 0:02:24.7]} 16. Bb5 {[%clk 0:01:55.7]} 16... O-O {[%clk
0:02:21.5]} 17. Re1 {[%clk 0:01:47.6]} 17... e4 {[%clk 0:01:58.9]} 18. Qb3
{[%clk 0:01:35.7]} 18... Kh8 {[%clk 0:01:54]} 19. Rad1 {[%clk 0:01:27.4]} 19...
f5 {[%clk 0:01:52.7]} 20. c4 {[%clk 0:01:15.6]} 20... Nxd4 {[%clk 0:01:48.4]}
21. Rxd4 {[%clk 0:01:07.7]} 21... Qxc5 {[%clk 0:01:48.1]} 22. Red1 {[%clk
0:01:08]} 22... f4 {[%clk 0:00:58.6]} 23. cxd5 {[%clk 0:00:59.3]} 23... e3
{[%clk 0:00:58.6]} 24. fxe3 {[%clk 0:00:48.3]} 24... fxe3 {[%clk 0:00:54.5]} 25.
Qc4 {[%clk 0:00:26.9]} 25... Qa7 {[%clk 0:00:49.5]} 26. Qe2 {[%clk 0:00:22]}
26... h6 {[%clk 0:00:27.5]} 27. d6 {[%clk 0:00:22.2]} 27... Nf5 {[%clk
0:00:26.8]} 28. Rd5 {[%clk 0:00:22.6]} 28... Rad8 {[%clk 0:00:15.2]} 29. d7
{[%clk 0:00:22.1]} 29... Ne7 {[%clk 0:00:06]} 30. Re5 {[%clk 0:00:21.3]} 30...
Nf5 {[%clk 0:00:06.5]} 31. Re8 {[%clk 0:00:20.5]} 31... Kh7 {[%clk 0:00:02.7]}
32. g4 {[%clk 0:00:17.8]} 32... Nd4 {[%clk 0:00:01.9]} 33. Qxe3 {[%clk
0:00:16.7]} 33... Nf3+ {[%clk 0:00:02.1]} 34. Kh1 {[%clk 0:00:16.5]} 34... Qxe3
{[%clk 0:00:01.6]} 35. Rxe3 {[%clk 0:00:16.8]} 35... Ng5 {[%clk 0:00:02]} 36.
Re8 {[%clk 0:00:16.4]} 36... Nf7 {[%clk 0:00:01.7]} 37. Rde1 {[%clk 0:00:16.6]}
37... Nd6 {[%clk 0:00:01.6]} 38. Rxf8 {[%clk 0:00:16.5]} 38... Rxf8 {[%clk
0:00:02.5]} 39. Re8 {[%clk 0:00:15.7]} 39... Nxe8 {[%clk 0:00:01.8]} 40. dxe8=Q
{[%clk 0:00:15.8]} 1-0

[Event "*** SCC Grand Prix: Titled Tuesday Blitz"]
[Site "Chess.com"]
[Date "2020.07.21"]
[Round "5"]
[White "AniJak"]
[Black "AungTZ"]
[Result "1-0"]
[WhiteElo "2302"]
[BlackElo "2021"]
[TimeControl "180+1"]
[EndTime "10:55:38 PDT"]
[Termination "AniJak won on time"]

1. e4 {[%clk 0:03:00.9]} 1... c5 {[%clk 0:02:57.1]} 2. Nc3 {[%clk 0:03:00.1]}
2... a6 {[%clk 0:02:56.4]} 3. g3 {[%clk 0:02:59.5]} 3... b5 {[%clk 0:02:55.7]}
4. Bg2 {[%clk 0:02:58]} 4... Bb7 {[%clk 0:02:52.1]} 5. Nge2 {[%clk 0:02:56.7]}
5... Nf6 {[%clk 0:02:50.8]} 6. d3 {[%clk 0:02:49.8]} 6... b4 {[%clk 0:02:39.2]}
7. Na4 {[%clk 0:02:49.3]} 7... e6 {[%clk 0:02:37.7]} 8. Be3 {[%clk 0:02:48.3]}
8... Qa5 {[%clk 0:02:24]} 9. b3 {[%clk 0:02:47.7]} 9... d5 {[%clk 0:02:22.3]}
10. exd5 {[%clk 0:02:45.6]} 10... Bxd5 {[%clk 0:02:19.3]} 11. O-O {[%clk
0:02:41.8]} 11... Be7 {[%clk 0:02:11.7]} 12. a3 {[%clk 0:02:41.1]} 12... bxa3
{[%clk 0:01:42.2]} 13. Rxa3 {[%clk 0:02:38.4]} 13... Bxg2 {[%clk 0:01:41]} 14.
Kxg2 {[%clk 0:02:37.4]} 14... Nbd7 {[%clk 0:01:36.6]} 15. Ra1 {[%clk 0:02:36.3]}
15... Qc7 {[%clk 0:01:35.1]} 16. Nec3 {[%clk 0:02:28.5]} 16... O-O {[%clk
0:01:28.3]} 17. h3 {[%clk 0:02:25.6]} 17... Nd5 {[%clk 0:01:16.9]} 18. Qf3
{[%clk 0:02:15.6]} 18... Nxc3 {[%clk 0:00:54.5]} 19. Nxc3 {[%clk 0:02:14.7]}
19... Bf6 {[%clk 0:00:54]} 20. Bd2 {[%clk 0:02:08.2]} 20... Nb6 {[%clk
0:00:51.1]} 21. Ra2 {[%clk 0:01:58.9]} 21... Bxc3 {[%clk 0:00:37.4]} 22. Bxc3
{[%clk 0:01:58.7]} 22... Nd5 {[%clk 0:00:38.3]} 23. Ba1 {[%clk 0:01:20.7]} 23...
Nb4 {[%clk 0:00:34]} 24. Rb2 {[%clk 0:01:20.7]} 24... Rfd8 {[%clk 0:00:29.5]}
25. Rd1 {[%clk 0:01:08.7]} 25... Rab8 {[%clk 0:00:21.2]} 26. Kg1 {[%clk
0:00:59.9]} 26... Qd7 {[%clk 0:00:15.3]} 27. Qg4 {[%clk 0:00:55.4]} 27... f5
{[%clk 0:00:13.7]} 28. Qf3 {[%clk 0:00:54.5]} 28... Qd5 {[%clk 0:00:12.5]} 29.
Qe2 {[%clk 0:00:47.2]} 29... e5 {[%clk 0:00:11.2]} 30. Rbb1 {[%clk 0:00:44.2]}
30... Rb7 {[%clk 0:00:07.5]} 31. Bxe5 {[%clk 0:00:38]} 31... Re7 {[%clk
0:00:06.4]} 32. f4 {[%clk 0:00:38.2]} 32... Rde8 {[%clk 0:00:05.5]} 33. c3
{[%clk 0:00:34.9]} 33... Nc6 {[%clk 0:00:05.4]} 34. d4 {[%clk 0:00:34.6]} 34...
cxd4 {[%clk 0:00:05.4]} 35. cxd4 {[%clk 0:00:34.9]} 35... Rb8 {[%clk 0:00:04.2]}
36. Qxa6 {[%clk 0:00:31.7]} 36... Rb4 {[%clk 0:00:02.3]} 37. Qc8+ {[%clk
0:00:24.3]} 37... Kf7 {[%clk 0:00:03.2]} 38. Qxf5+ {[%clk 0:00:24.3]} 38... Kg8
{[%clk 0:00:01.9]} 39. Rbc1 {[%clk 0:00:19.1]} 39... h6 {[%clk 0:00:01.5]} 40.
Qc8+ {[%clk 0:00:18.5]} 1-0